Cogmind - Beta 14 @@@ ROGUE MODE // 2024.09.20 @ 11:12:55 Player: lsend Result: Destroyed by XU-9ZD(E) with Barrage Gun Performance ------------- Evolutions (0) 0 Regions Visited (5) 1000 Robots Destroyed (0) 0 Value Destroyed (0) 0 Prototype IDs (6) 120 Alien Tech Used (0) 0 Bonus (325) 325 TOTAL SCORE: 1445 Bonus ------- Follower Combat Kills 25 Registered with UFD 300 Cogmind --------- Core Integrity 0/250 Matter 300/300 Energy 99/100 System Corruption 0% Temperature Cool (0) Movement Core (100) Ox1 Location -7/Scraptown Parts ------- > --- POWER (1) -------- (None) > --- PROPULSION (2) --- (None) > --- UTILITY (2) ------ (None) > --- WEAPON (2) ------- Thermal Lance > --- INVENTORY (5) ---- VTOL Module VTOL Module VTOL Module VTOL Module Small Storage Unit Peak State ------------ > --- POWER ------------ (None) > --- PROPULSION ------- Cesium-ion Thruster Xenon Bombardment Thruster > --- UTILITY ---------- Signal Interpreter Medium Armor Plating > --- WEAPON ----------- Thermal Lance > --- INVENTORY -------- VTOL Module VTOL Module VTOL Module VTOL Module Small Storage Unit [Rating: 20] Favorites ----------- Power None Propulsion Light Treads Treads Light Treads Flight Unit Cesium-ion Thruster Utility Signal Interpreter Processor Signal Interpreter Protection Medium Armor Plating Weapon Power Maul Impact Weapon Power Maul Piercing Weapon Thermal Lance Build | -11 -10 -10 -10 -7 -7 ------- Run | Yrd Mat Min Sub Rec Scr Slots Evolved . | . . . . . . Power . | . . . . . . Propulsion . | . . . . . . Utility . | . . . . . . Weapon . | . . . . . . Parts Attached 10 | 2 . 1 . . 7 Power . | . . . . . . Engine . | . . . . . . Core . | . . . . . . Reactor . | . . . . . . Propulsion 5 | 2 . . . . 3 Treads 2 | 2 . . . . . Leg . | . . . . . . Wheel . | . . . . . . Hover . | . . . . . . Flight 3 | . . . . . 3 Utility 2 | . . 1 . . 1 Device . | . . . . . . Storage . | . . . . . . Processor 1 | . . 1 . . . Hackware . | . . . . . . Protection 1 | . . . . . 1 Artifact . | . . . . . . Weapon 3 | . . . . . 3 Energy Gun . | . . . . . . Energy Cannon . | . . . . . . Ballistic Gun . | . . . . . . Ballistic Cannon . | . . . . . . Launcher . | . . . . . . Special Weapon . | . . . . . . Impact Weapon 2 | . . . . . 2 Slashing Weapon . | . . . . . . Piercing Weapon 1 | . . . . . 1 Special Melee Weapon . | . . . . . . Unidentified Prototypes . | . . . . . . Parts Lost 4 | . . . . . 4 Power . | . . . . . . Propulsion 2 | . . . . . 2 Utility 2 | . . . . . 2 Weapon . | . . . . . . Highest Loss Streak 4 | . . . . . 4 To Critical Strikes . | . . . . . . Average Slot Usage (%) 47 | . 28 42 42 42 65 Treads 17 | . 28 28 28 28 . Flight 9 | . . . . . 27 Processor 11 | . . 14 14 14 14 Protection 4 | . . . . . 12 Impact Weapon 3 | . . . . . 9 Peak Build Rating 20 | 2 2 3 3 3 20 Average Rating 6 | 1 2 2 3 3 12 On Entrance 2 | . 2 2 3 3 3 Naked Turns . | . . . . . . Heaviest Build 11 | . . . . . 11 Greatest Support 11 | 3 3 3 3 3 11 Greatest Overweight (x) 1 | . . . . . 1 Average Overweight (x) . | . . . . . . Largest Inventory Capacity 5 | 5 5 5 5 5 5 Average Capacity 5 | 5 5 5 5 5 5 Most Carried 5 | 1 5 5 5 5 5 Average Carried 4 | . 1 5 5 5 5 Final Capacity 5 | 5 5 5 5 5 5 Final Carried 5 | 1 5 5 5 5 5 Class Distribution -------------------- 65% | Mutant 13% | Derelict-Sprinter 11% | Derelict-Mutant 9% | Sprinter Dominant Class ---------------- Mutant | -10/Materials Mutant | -10/Mines Mutant | -10/Subcaves Mutant | -7/Recycling Derelict-Sprinter | -7/Scraptown Resources | -11 -10 -10 -10 -7 -7 ----------- Run | Yrd Mat Min Sub Rec Scr Matter Collected 280 | 220 . 10 . . 50 Remotely . | . . . . . . Salvage Created . | . . . . . . Parts . | . . . . . . Haulers Intercepted . | . . . . . . Recyclers Shooed . | . . . . . . Parts Field Recycled . | . . . . . . Retrieved Matter . | . . . . . . Parts Self-Destructed 2 | . . . 2 . . Prevented . | . . . . . . Kills | -11 -10 -10 -10 -7 -7 ------- Run | Yrd Mat Min Sub Rec Scr Combat Hostiles Destroyed . | . . . . . . Classes Destroyed . | . . . . . . Best Kill Streak . | . . . . . . Combat Bots Only . | . . . . . . Max Kills in Single Turn . | . . . . . . Gunslinging . | . . . . . . Exploded . | . . . . . . Melee . | . . . . . . Uniques/NPCs Destroyed . | . . . . . . Combat | -11 -10 -10 -10 -7 -7 -------- Run | Yrd Mat Min Sub Rec Scr Hostile Shots Fired 110 | . 5 22 50 . 33 Missed 54 | . 2 11 28 . 13 Damage Taken 658 | . 35 109 156 . 358 Core 250 | . 35 30 49 . 136 Absorbed by Shields . | . . . . . . Core Remaining (%) 100 | 100 . . . . . Volleys Fired . | . . . . . . Largest . | . . . . . . Hottest . | . . . . . . Shots Fired . | . . . . . . Gun . | . . . . . . Cannon . | . . . . . . Launcher . | . . . . . . Special . | . . . . . . Kinetic . | . . . . . . Thermal . | . . . . . . Explosive . | . . . . . . Electromagnetic . | . . . . . . Robot Hit Streak . | . . . . . . Robot Miss Streak . | . . . . . . Penetration Max . | . . . . . . Secondary Targets . | . . . . . . Shots Hit Robots . | . . . . . . Core Hits . | . . . . . . Critical Kills . | . . . . . . Critical Parts Destroyed . | . . . . . . Critical Strikes . | . . . . . . Melee Attacks 1 | . . . . . 1 Impact 1 | . . . . . 1 Slashing . | . . . . . . Piercing . | . . . . . . Sneak Attacks . | . . . . . . Combat Hostiles . | . . . . . . Follow-up Attacks . | . . . . . . Damage Inflicted . | . . . . . . Guns . | . . . . . . Cannons . | . . . . . . Explosions . | . . . . . . Melee . | . . . . . . Ramming . | . . . . . . Kinetic . | . . . . . . Thermal . | . . . . . . Explosive . | . . . . . . Electromagnetic . | . . . . . . Impact . | . . . . . . Slashing . | . . . . . . Piercing . | . . . . . . Highest Corruption . | . . . . . . Average Corruption . | . . . . . . Corruption Purged . | . . . . . . Corruption Blocked . | . . . . . . Overload Shots . | . . . . . . Overflow Damage . | . . . . . . Projectiles . | . . . . . . Explosions . | . . . . . . Melee . | . . . . . . Knockbacks . | . . . . . . Impact . | . . . . . . Kinetic . | . . . . . . Secondary . | . . . . . . Self-Inflicted Damage . | . . . . . . Shots . | . . . . . . Rammed . | . . . . . . Targets Rammed . | . . . . . . Kicked . | . . . . . . Crushed . | . . . . . . Highest Temperature 8 | . . . . . 8 Average Temperature 8 | . . . . . 8 Received Heat Transfer 162 | . 21 27 42 . 72 Siege Activations . | . . . . . . Robots Corrupted . | . . . . . . Combat Hostiles . | . . . . . . Parts Fried . | . . . . . . Impact Corruptions . | . . . . . . Robots Melted . | . . . . . . Combat Hostiles . | . . . . . . Parts Melted . | . . . . . . Heat Transferred . | . . . . . . Parts Sabotaged . | . . . . . . Parts Stolen . | . . . . . . Parts Stripped . | . . . . . . Power Chain Reactions . | . . . . . . Alert | -11 -10 -10 -10 -7 -7 ------- Run | Yrd Mat Min Sub Rec Scr Peak Influence 137 | . 51 137 . 81 . Initial 76 | . . 25 . 76 . Average 65 | . 16 110 . 77 . Maximum Alert Level . | . . . . . . Low Security (%) 100 | 100 100 100 . 100 . Level 1 . | . . . . . . Level 2 . | . . . . . . Level 3 . | . . . . . . Level 4 . | . . . . . . Level 5 . | . . . . . . High Security . | . . . . . . Max Security . | . . . . . . Squads Dispatched 2 | . 2 . . . . Investigation 1 | . 1 . . . . Extermination . | . . . . . . Reinforcement 1 | . 1 . . . . Assault . | . . . . . . Garrison . | . . . . . . Intercept . | . . . . . . Searches Triggered . | . . . . . . Construction Impeded . | . . . . . . Haulers Reinforced . | . . . . . . Active Scanning Responses . | . . . . . . Cargo Convoy Interrupts . | . . . . . . Stealth | -11 -10 -10 -10 -7 -7 --------- Run | Yrd Mat Min Sub Rec Scr Distress Signals 1 | . 1 . . . . Communications Jammed . | . . . . . . Distress Signals . | . . . . . . Times Spotted 42 | . 7 9 9 . 17 Peak Tracking Total 18 | . 4 4 6 . 18 Tactical Retreats 6 | . 1 3 2 . . Traps | -11 -10 -10 -10 -7 -7 ------- Run | Yrd Mat Min Sub Rec Scr Traps Triggered 1 | . 1 . . . . Indirectly . | . . . . . . Trap Hack Attempts . | . . . . . . Triggered . | . . . . . . Disarmed . | . . . . . . Reprogrammed . | . . . . . . Reused . | . . . . . . Traps Extracted . | . . . . . . Installed . | . . . . . . Triggered . | . . . . . . Machines | -11 -10 -10 -10 -7 -7 ---------- Run | Yrd Mat Min Sub Rec Scr Machines Disabled 1 | . . . . . 1 Max in Single Turn 1 | . . . . . 1 Machines Repaired . | . . . . . . Machines Dismantled . | . . . . . . Machines Sabotaged . | . . . . . . Overloaded Fab Kills . | . . . . . . Hacking | -11 -10 -10 -10 -7 -7 --------- Run | Yrd Mat Min Sub Rec Scr Machines Accessed 11 | . 1 . . 4 6 Terminals 2 | . 1 . . 1 . Fabricators . | . . . . . . Repair Stations . | . . . . . . Recycling Units 3 | . . . . 3 . Scanalyzers . | . . . . . . Garrison Access . | . . . . . . Total Hacks 35 | . 3 . . 7 25 Successful 29 | . 1 . . 3 25 Failed 6 | . 2 . . 4 . Catastrophic 2 | . 1 . . 1 . Database Lockouts . | . . . . . . Manual 3 | . 1 . . 2 . Terminals 5 | . 3 . . 2 . Fabricators . | . . . . . . Repair Stations . | . . . . . . Recycling Units 5 | . . . . 5 . Scanalyzers . | . . . . . . Garrison Access . | . . . . . . Terminal Hacks 25 | . . . . . 25 Record 16 | . . . . . 16 Robot Analysis 8 | . . . . . 8 Derelict Proto ID Bank 1 | . . . . . 1 Fabricator Hacks . | . . . . . . Repair Station Hacks . | . . . . . . Recycling Unit Hacks 1 | . . . . 1 . Retrieve Components 1 | . . . . 1 . Scanalyzer . | . . . . . . Garrison Access Hacks . | . . . . . . Unauthorized Hacks 3 | . 1 . . 2 . Terminals 3 | . 1 . . 2 . Track 1 | . . . . 1 . Assimilate 1 | . 1 . . . . Botnet 1 | . . . . 1 . Fabricators . | . . . . . . Repair Stations . | . . . . . . Recycling Units . | . . . . . . Scanalyzers . | . . . . . . Garrison Access . | . . . . . . Data Cores Recovered . | . . . . . . Used . | . . . . . . Hacking Detections 4 | . 1 . . 3 . Full Trace Events . | . . . . . . Feedback Events . | . . . . . . Feedback Blocked . | . . . . . . Robot Schematics Acquired . | . . . . . . Robots Built . | . . . . . . Authchips . | . . . . . . Time . | . . . . . . Total Robot Build Rating . | . . . . . . Part Schematics Acquired . | . . . . . . Parts Built . | . . . . . . Authchips . | . . . . . . Time . | . . . . . . Total Part Build Rating . | . . . . . . Parts Repaired . | . . . . . . Time . | . . . . . . Parts Recycled . | . . . . . . Recycled Matter . | . . . . . . Retrieved Matter . | . . . . . . Retrieved Components 3 | . . . . 3 . Parts Scanalyzed . | . . . . . . Part Schematics Acquired . | . . . . . . Parts Damaged . | . . . . . . Bothacking | -11 -10 -10 -10 -7 -7 ------------ Run | Yrd Mat Min Sub Rec Scr Used RIF Installer . | . . . . . . Robots Hacked . | . . . . . . Non-combat . | . . . . . . Combat . | . . . . . . Robot Hacks Applied . | . . . . . . Relay Couplers Released . | . . . . . . Fabnet Peak Effective % . | . . . . . . Robots Rewired . | . . . . . . Allies Hacked . | . . . . . . Hacks Repelled . | . . . . . . Allies | -11 -10 -10 -10 -7 -7 -------- Run | Yrd Mat Min Sub Rec Scr Total Allies 3 | . 1 2 . . . Largest Group 2 | . 1 2 . . . Highest-Rated Group 45 | . 10 45 . . . Highest-Rated Ally 31 | . 10 31 . . . Total Orders . | . . . . . . Ally Attacks 9 | . . 9 . . . Total Damage 148 | . . 148 . . . Kills 2 | . . 2 . . . Allies Corrupted . | . . . . . . Allies Melted 1 | . . 1 . . . Intel | -11 -10 -10 -10 -7 -7 ------- Run | Yrd Mat Min Sub Rec Scr Robot Analysis Total 8 | . . . . . 8 Derelict Logs Recovered 2 | . . . 2 . . Drone Launches . | . . . . . . Drone Recoveries . | . . . . . . Exploration | -11 -10 -10 -10 -7 -7 ------------- Run | Yrd Mat Min Sub Rec Scr Turns Passed 1500 | 20 310 347 194 91 538 Spaces Moved 2484 | 32 140 158 387 181 1586 Core 925 | 32 140 158 387 181 27 Treads . | . . . . . . Legs . | . . . . . . Wheels . | . . . . . . Hover . | . . . . . . Flight 1559 | . . . . . 1559 Fastest Speed 32 | 50 50 50 50 50 32 Average Speed 39 | 50 50 50 50 50 32 Slowest Speed 100 | 50 50 50 50 50 100 Overloaded Moves . | . . . . . . Propulsion Burnouts . | . . . . . . Robots Hopped . | . . . . . . Cave-ins Triggered . | . . . . . . Exploration Rate (%) 42 | 4 37 49 25 46 94 Regions Visited 5 Branch Regions 4 Pre-discovered Areas 2 | . . . 2 . . Known Exits Taken 3 | . . 1 1 1 . Unknown Exits Taken 2 | 1 1 . . . . Scrap Searched 14 | . . 1 1 . 12 Spaces Dug . | . . . . . . Terrain Destroyed . | . . . . . . Melee . | . . . . . . Projectile . | . . . . . . AOE . | . . . . . . Terrain Rammed . | . . . . . . Walls Destroyed . | . . . . . . Machines Disabled . | . . . . . . Actions | -11 -10 -10 -10 -7 -7 --------- Run | Yrd Mat Min Sub Rec Scr Total 3002 | 34 379 424 386 180 1599 Wait 502 | . 236 266 . . . Move 2479 | 31 139 157 386 180 1586 Hop . | . . . . . . Pick Up 5 | 1 4 . . . . Fast Attach 9 | 2 . 1 . . 6 Attach . | . . . . . . Detach . | . . . . . . Swap 1 | . . . . . 1 Drop 5 | . . . . . 5 Fire . | . . . . . . Melee 1 | . . . . . 1 Ram . | . . . . . . Kick . | . . . . . . Crush . | . . . . . . Escape Stasis . | . . . . . . Rewire . | . . . . . . Trap . | . . . . . . Miscellaneous . | . . . . . . Route ------- -11/Scrapyard -10/Materials -10/Mines -10/Subcaves -7/Recycling -7/Scraptown (discovered 2 exits: [*Fac x2]) History --------- Turn | Location | Event 7 | -11/Scrapyard | Discovered new exit (range 15) 21 | -11/Scrapyard | Entered Materials 315 | -10/Materials | Build established: Mutant 329 | -10/Materials | Discovered new exit (range 6) 331 | -10/Materials | Entered Mines 661 | -10/Mines | Discovered new exit (range 5) 677 | -10/Mines | Identified exit to Subcaves 678 | -10/Mines | Entered Subcaves 679 | -10/Subcaves | Learned location of Storage (-7) 692 | -10/Subcaves | A swath of the cavern ceiling suddenly collapsed 750 | -10/Subcaves | Learned location of Zion (-7) 866 | -10/Subcaves | Discovered new exit (range 12) 871 | -10/Subcaves | Identified exit to Recycling 872 | -10/Subcaves | Entered Recycling 951 | -7/Recycling | Scanned before Scraplab entrance 958 | -7/Recycling | Entered Scraplab 962 | -7/Recycling | Discovered new exit (range 3) 962 | -7/Recycling | Identified exit to Scraptown 963 | -7/Recycling | Entered Scraptown 1051 | -7/Scraptown | Discovered new exit (range 5) 1071 | -7/Scraptown | Visited Bundlers 1090 | -7/Scraptown | Visited Cyclists 1146 | -7/Scraptown | Visited TADAMA 1158 | -7/Scraptown | Visited Shadow of the Wyrm 1162 | -7/Scraptown | Visited Spacefarers 1185 | -7/Scraptown | Visited The Evicted 1226 | -7/Scraptown | Visited UFD Registry 1226 | -7/Scraptown | Registered with UFD as "Fluxflow" 1234 | -7/Scraptown | Visited Science Guys 1247 | -7/Scraptown | Visited Chapter 10 1256 | -7/Scraptown | Visited Research Penetration Think Tank 1304 | -7/Scraptown | Visited Analyses Database 1324 | -7/Scraptown | Visited DA-N13 Charitable Foundation 1325 | -7/Scraptown | Found DCF Scrap (30 items) 1335 | -7/Scraptown | Visited Junk Repository 1344 | -7/Scraptown | Visited Scrap Suit Storage 1354 | -7/Scraptown | Visited Observation Area 1368 | -7/Scraptown | Visited Scrapoid Research Area 1388 | -7/Scraptown | Visited Derelict Rescue Squad 1401 | -7/Scraptown | Discovered new exit (range 5) 1457 | -7/Scraptown | Entered Cyclist Reading Room 1479 | -7/Scraptown | Attacked by Scraptown defenders 1483 | -7/Scraptown | Found Thermal Lance 1498 | -7/Scraptown | Core integrity fell below 50% 1501 | -7/Scraptown | Destroyed by XU-9ZD(E) with Barrage Gun Last Messages --------------- --Ironscrape 01457_ Connecting with Subcaves Research... 01469_ Triborg examines you with curiosity. 01470_ V0-B1X(g): "XCOM - Xom Commends our Malaise!" 01472_ V0-B1X(g): "For the DCSS fans like me, when we need a little consolation following torture at the hands of the RNG of life." 01479_ Machine disabled. 01479_ ANNOUNCEMENT: Intruder alert! Defend Scraptown! 01482_ Dropped Power Maul. 01483_ Acquired Thermal Lance. 01495_ Machine disabled. 01495_ Med. Armor Plating destroyed. 01497_ Penetrated by Bolt. 01498_ Xenon Bombardment Thruster destroyed. 01498_ Machine disabled. 01498_ Slug penetrates Machine. 01500_ Signal Interpreter destroyed. 01500_ Cesium-ion Thruster destroyed. 01500_ Penetrated by Slug. 01501_ A6-QV7(j): "Did MC send you?" 01501_ Penetrated by Bolt. Map ----- +----------------------------------------------------+ | ?###########??????????# ##########??????????????? | | ?#"""""""""########???# #""""""""#??????????????? | | ?#" "##"! "???# #" && " "#??????????????? | | ?#" """"" "##" "#???# #" "#??????????????? | | ?#" "???" "### X##### #"" ""#??????????????? | | ?#" "???" "##" "## #" "#??????????????? | | ?#" "???" "##"! !"## #"" ""#??????????????? | | ?#" "???" "##"! !"## #" & "#??????????????? | | ?#" """"" "##"! !"## #"" ""#??????????????? | | ?#" "##" !"## # #??????????????? | | ?# ""### ### r# #??????????????? | | ?# ## ## # z #??????????????? | | ?#### ########### ##### ##h#######??????????????? | | ##### ########### ##### ##h#########????????????? | | """"" """"""""""" """""g "" "## *!#????????????? | | "## /#????????????? | | "## ####????????????? | | "## #????????????? | | "## #????????????? | | #????????????? | | """"""""""""""""""""""" "## ####????????????? | | """"""""""""""""""""""" "## [ ?????????????? | | ### ################"" "## #????????????? | | ##????????#""E "#########???????????? | | X"#????????#"" "##!![*==#???????????? | | "" "" ##????????#"" @ "##!*/%**#???????????? | | "" "" X"#??????###"" "##=!//[=#???????????? | | " " ######### #"" "##!=*[###???????????? | | "" j =]!###???????????? | | "" ## *!!] #???????????? | | " " ######### #" "## =%! #???????????? | | "" "" ""#??????###" "## =! #???????????? | | "" "" ##????????#" "#########???????????? | | ""?????????#"" #???????????????????? | | ##????????#""jE #########???????????? | | ### ################"" j"## """"#???????????? | | """"""""""""""""""""""" "## """"#???????????? | | """"""""""""""""""" """ " "#???????????? | | "## ""#???????????? | | j "## "#???????????? | | "## X"#???????????? | | ## " "#???????????? | | # """"#???????????? | | """"""" """"""""""" """"" #########???????????? | | ####### ########### ###### #???????????????????? | | # #???#" # #???????????????????? | | "### "#???#"" "# #???????????????????? | | &## ""#???#"" # #???????????????????? | | ## """"#???#"" "# #???????????????????? | | ## " ""#???#"" "# #???????????????????? | +----------------------------------------------------+ Best States ------------- Heat Dissipation 25 Energy Generation 5 Energy Capacity 100 Matter Stores 300 Matter Capacity 300 Sight Range 16 Terrain Scan Density 10 Armor Coverage 225 Evasion (%) 63 Item Schematics ----------------- None Robot Schematics ------------------ None Fabricated ------------ Nothing Alien Tech Used ----------------- None Achievements -------------- None Challenges ------------ None Game ------ Seed PointyGodMeganuke Manual? 0 Play Time 00:23:33 Cumulative 689.9 hours Start 2024.09.20 @ 09:30:29 End 2024.09.20 @ 11:12:55 Sessions 5 Manual Loads 0 Difficulty Rogue Special Mode None Game No. 537 Rogue 537 Adventurer 0 Explorer 0 Win Type - Total 179 Types 100/9/51/7/3/2/5/1/1 Lore% 85 Gallery% 88 Achievement% 85 Wizard Run 0 Options --------- Layout 0 ASCII 1 Keyboard 0 Movement Vi Keybinds 0 Fullscreen 1 Font 16/Smallcaps Map View 184x79 Zoom Use 0% Tactical HUD 1 Map Filters NONE Filters NONE Steam 1 RUN: b88af9b1-fad3-4c8c-b00d-cc8d27790120